fUST/lending_fUST_20250208
["ID","MTS","AMOUNT","RATE_DAILY","PERIOD"]
[352290995,1739029840791,-513.0595766,0.00010958,2]
[352290997,1739029840801,-7468.3,0.00010958,2]
[352290999,1739029840811,-606.87,0.00010958,2]
[352291001,1739029840820,-500.0,0.00010958,2]
[352291003,1739029840829,-504.1575931,0.00010958,2]
[352291005,1739029840839,-809.01,0.00010958,2]
[352291007,1739029840848,-1339.39,0.00010958,2]
[352291009,1739029840857,-500.0,0.00010958,2]
[352291011,1739029840867,-500.0,0.00010958,2]
[352291013,1739029840877,-500.0,0.00010958,2]
[352291015,1739029840886,-500.0,0.00010958,2]
[352291017,1739029840896,-500.0,0.00010958,2]
[352291019,1739029840905,-500.0,0.00010958,2]
[352291021,1739029840915,-524.74,0.00010958,2]
[352291023,1739029840924,-1571.43,0.00010958,2]
[352291025,1739029840933,-500.0,0.00010958,2]
[352291027,1739029840942,-3144.47,0.00010958,2]
[352291029,1739029840953,-1210.14,0.00010958,2]
[352291031,1739029840963,-161.01362864,0.00010958,2]
[352291033,1739029840973,-500.0,0.00010958,2]
[352291035,1739029840987,-500.0,0.00010958,2]
[352291037,1739029840996,-500.0,0.00010958,2]
[352291039,1739029841005,-500.0,0.00010958,2]
[352291041,1739029841014,-588.34928311,0.00010958,2]
[352291043,1739029841023,-665.87,0.00010958,2]
[352291045,1739029841034,-3969.61,0.00010958,2]
[352291048,1739029841043,-500.0,0.00010958,2]
[352291049,1739029841052,-633.22,0.00010958,2]
[352291051,1739029841067,-500.0,0.00010958,2]
[352291053,1739029841084,-739.3,0.00010958,2]
[352291055,1739029841093,-500.0,0.00010958,2]
[352291057,1739029841102,-1405.35,0.00010958,2]
[352291059,1739029841111,-500.0,0.00010958,2]
[352291061,1739029841120,-500.0,0.00010958,2]
[352291063,1739029841129,-500.0,0.00010958,2]
[352291065,1739029841138,-500.0,0.00010958,2]
[352291067,1739029841147,-500.0,0.00010958,2]
[352291069,1739029841157,-639.43,0.00010958,2]
[352291071,1739029841167,-500.0,0.00010958,2]
[352291073,1739029841176,-500.0,0.00010958,2]
[352291075,1739029841184,-951.4,0.00010958,2]
[352291092,1739029841351,-500.0,0.00010958,2]
[352291094,1739029841362,-500.0,0.00010958,2]
[352291096,1739029841372,-276.79606257,0.00010958,2]
[352291098,1739029841382,-500.0,0.00010958,2]
[352291100,1739029841393,-500.0,0.00010958,2]
[352291102,1739029841402,-2784.51,0.00010958,2]
[352291104,1739029841412,-500.0,0.00010958,2]
[352291106,1739029841422,-151.0,0.00010959,2]
[352291108,1739029841431,-151.0,0.00010959,2]
[352291110,1739029841440,-151.0,0.00010959,2]
[352291112,1739029841450,-151.0,0.00010959,2]
[352291114,1739029841460,-195.470037,0.00010959,2]
[352291116,1739029841471,-195.470037,0.00010959,2]
[352291118,1739029841480,-373.169892,0.00010959,2]
[352291121,1739029841496,-373.169892,0.00010959,2]
[352291123,1739029841507,-500.0,0.00010973,2]
[352291125,1739029841516,-10000.0,0.00011,5]
[352291127,1739029841525,-709.2899095,0.00011,2]
[352291129,1739029841534,-354.7727591,0.00011,2]
[352291131,1739029841543,-354.7727591,0.00011,2]
[352291133,1739029841551,-354.7727591,0.00011,2]
[352291135,1739029841561,-354.7727591,0.00011,2]
[352291137,1739029841569,-500.0,0.00011073,2]
[352291139,1739029841579,-199.33482284,0.00011094,2]
[352291141,1739029841588,-500.0,0.00011094,2]
[352291143,1739029841597,-173.97994326,0.00011094,2]
[352291145,1739029841606,-500.0,0.00011094,2]
[352291147,1739029841615,-500.0,0.00011094,2]
[352291149,1739029841625,-459.57058276,0.00011095,2]
[352291151,1739029841634,-151.0,0.00011095,2]
[352291153,1739029841643,-151.0,0.00011095,2]
[352291155,1739029841652,-153.484543,0.00011095,2]
[352291157,1739029841662,-172.632684,0.00011095,2]
[352291159,1739029841671,-151.0,0.00011095,2]
[352291160,1739029841680,-151.0,0.00011095,2]
[352291161,1739029841690,-151.0,0.00011095,2]
[352291162,1739029841699,-151.0,0.00011095,2]
[352291163,1739029841708,-195.470037,0.00011095,2]
[352291164,1739029841717,-195.470037,0.00011095,2]
[352291165,1739029841727,-195.470037,0.00011095,2]
[352291166,1739029841736,-195.470037,0.00011095,2]
[352291167,1739029841745,-500.0,0.00011095,2]
[352291168,1739029841754,-500.0,0.00011095,2]
[352291169,1739029841764,-373.169892,0.00011095,2]
[352291170,1739029841773,-373.169892,0.00011095,2]
[352291171,1739029841782,-373.169892,0.00011095,2]
[352291172,1739029841791,-373.169892,0.00011095,2]
[352291173,1739029841801,-373.169892,0.00011095,2]
[352291174,1739029841810,-373.169892,0.00011095,2]
[352291175,1739029841819,-572.16,0.00011095,2]
[352291176,1739029841828,-500.0,0.00011095,2]
[352291177,1739029841837,-623.04528776,0.00011095,2]
[352291178,1739029841846,-500.0,0.00011095,2]
[352291179,1739029841856,-500.0,0.00011095,2]
[352291180,1739029841866,-500.0,0.00011095,2]
[352291181,1739029841876,-500.0,0.00011095,2]
[352291182,1739029841885,-500.0,0.00011095,2]
[352291183,1739029841895,-500.0,0.00011095,2]
[352291184,1739029841905,-500.0,0.00011095,2]
[352291185,1739029841914,-500.0,0.00011095,2]
[352291186,1739029841923,-500.0,0.00011095,2]
[352291187,1739029841933,-500.0,0.00011095,2]
[352291188,1739029841942,-749.9,0.00011095,2]
[352291189,1739029841954,-500.0,0.00011095,2]
[352291190,1739029841964,-896.41,0.00011095,2]
[352291191,1739029841973,-500.0,0.00011095,2]
[352291192,1739029841987,-1214.9,0.00011095,2]
[352291193,1739029841997,-500.0,0.00011095,2]
[352291195,1739029842006,-179.93861544,0.00011095,2]
[352291197,1739029842016,-500.0,0.00011095,2]
[352291199,1739029842026,-500.0,0.00011095,2]
[352291201,1739029842036,-500.0,0.00011095,2]
[352291203,1739029842045,-1250.48,0.00011095,2]
[352291205,1739029842054,-1270.46,0.00011095,2]
[352291207,1739029842067,-500.0,0.00011095,2]
[352291209,1739029842076,-591.28,0.00011095,2]
[352291211,1739029842085,-798.88,0.00011095,2]
[352291213,1739029842095,-500.0,0.00011095,2]
[352291215,1739029842105,-500.0,0.00011095,2]
[352291217,1739029842115,-531.16,0.00011095,2]
[352291219,1739029842124,-500.0,0.00011095,2]
[352291221,1739029842133,-500.0,0.00011095,2]
[352291223,1739029842142,-500.0,0.00011095,2]
[352291225,1739029842151,-500.0,0.00011095,2]
[352291227,1739029842160,-500.0,0.00011095,2]
[352291229,1739029842170,-957.99,0.00011095,2]
[352291231,1739029842179,-500.0,0.00011095,2]
[352291233,1739029842189,-500.0,0.00011095,2]
[352291235,1739029842199,-500.0,0.00011095,2]
[352291237,1739029842208,-500.0,0.00011095,2]
[352291239,1739029842218,-500.0,0.00011095,2]
[352291241,1739029842227,-1251.55,0.00011095,2]
[352291243,1739029842236,-500.0,0.00011095,2]
[352291245,1739029842245,-256.32044102,0.00011095,2]
[352291247,1739029842255,-1001.21,0.00011095,2]
[352291249,1739029842264,-500.0,0.00011095,2]
[352291252,1739029842273,-500.0,0.00011095,2]
[352291254,1739029842283,-500.0,0.00011095,2]
[352291256,1739029842293,-500.0,0.00011095,2]
[352291258,1739029842305,-500.0,0.00011095,2]
[352291260,1739029842314,-976.23,0.00011095,2]
[352291262,1739029842324,-500.0,0.00011095,2]
[352291264,1739029842333,-588.28,0.00011095,2]
[352291266,1739029842343,-500.0,0.00011095,2]
[352291268,1739029842353,-500.0,0.00011095,2]
[352291270,1739029842363,-301.28744575,0.00011095,2]
[352291272,1739029842373,-500.0,0.00011095,2]
[352291274,1739029842383,-500.0,0.00011095,2]
[352291276,1739029842392,-500.0,0.00011095,2]
[352291277,1739029842401,-500.0,0.00011095,2]
[352291279,1739029842412,-500.0,0.00011095,2]
[352291281,1739029842421,-500.0,0.00011095,2]
[352291283,1739029842430,-1041.29,0.00011095,2]
[352291284,1739029842440,-500.0,0.00011095,2]
[352291285,1739029842452,-644.7,0.00011095,2]
[352291286,1739029842461,-500.0,0.00011095,2]
[352291287,1739029842470,-500.0,0.00011095,2]
[352291288,1739029842480,-576.19,0.00011095,2]
[352291289,1739029842489,-500.0,0.00011095,2]
[352291290,1739029842498,-500.0,0.00011095,2]
[352291291,1739029842507,-500.0,0.00011095,2]
[352291292,1739029842517,-500.0,0.00011095,2]
[352291293,1739029842527,-500.0,0.00011095,2]
[352291294,1739029842536,-500.0,0.00011095,2]
[352291295,1739029842546,-503.44,0.00011095,2]
[352291296,1739029842556,-458.52951438,0.00011095,2]
[352291297,1739029842565,-506.77,0.00011095,2]
[352291299,1739029842575,-500.0,0.00011095,2]
[352291301,1739029842584,-257.37554615,0.00011095,2]
[352291302,1739029842593,-500.0,0.00011095,2]
[352291303,1739029842602,-500.0,0.00011095,2]
[352291304,1739029842611,-503.95681208,0.00011095,2]
[352291305,1739029842621,-500.0,0.00011095,2]
[352291306,1739029842630,-500.0,0.00011095,2]
[352291307,1739029842645,-500.0,0.00011095,2]
[352291308,1739029842658,-904.43,0.00011095,2]
[352291309,1739029842667,-564.85,0.00011095,2]
[352291310,1739029842676,-500.0,0.00011095,2]
[352291311,1739029842686,-784.19,0.00011095,2]
[352291312,1739029842698,-500.0,0.00011095,2]
[352291313,1739029842708,-500.0,0.00011095,2]
[352291314,1739029842718,-500.0,0.00011095,2]
[352291315,1739029842727,-500.0,0.00011095,2]
[352291316,1739029842736,-500.0,0.00011095,2]
[352291317,1739029842746,-500.0,0.00011095,2]
[352291318,1739029842756,-1214.06,0.00011095,2]
[352291319,1739029842765,-3517.66,0.00011095,2]
[352291320,1739029842775,-996.9,0.00011095,2]
[352291321,1739029842784,-4592.2,0.00011095,2]
[352291322,1739029842793,-500.0,0.00011095,2]
[352291323,1739029842803,-500.0,0.00011095,2]
[352291324,1739029842812,-500.0,0.00011095,2]
[352291325,1739029842821,-326.75827312,0.00011095,2]
[352291326,1739029842830,-500.0,0.00011095,2]
[352291327,1739029842839,-1582.44,0.00011095,2]
[352291328,1739029842848,-500.0,0.00011095,2]
[352291329,1739029842858,-501.65443903,0.00011095,2]
[352291330,1739029842867,-500.0,0.00011095,2]
[352291331,1739029842876,-500.0,0.00011095,2]
[352291332,1739029842885,-338.57496787,0.00011095,2]
[352291333,1739029842895,-500.0,0.00011095,2]
[352291334,1739029842904,-500.0,0.00011095,2]
[352291335,1739029842914,-500.0,0.00011095,2]
[352291336,1739029842923,-504.57467689,0.00011095,2]
[352291337,1739029842932,-500.0,0.00011095,2]
[352291338,1739029842941,-500.0,0.00011095,2]
[352291339,1739029842953,-500.0,0.00011095,2]
[352291340,1739029842962,-1061.0,0.00011095,2]
[352291341,1739029842971,-500.0,0.00011095,2]
[352291342,1739029842981,-500.0,0.00011095,2]
[352291343,1739029842995,-1022.59,0.00011095,2]
[352291344,1739029843004,-502.09160468,0.00011095,2]
[352291345,1739029843013,-500.0,0.00011095,2]
[352291346,1739029843022,-3843.95,0.00011095,2]
[352291347,1739029843032,-500.0,0.00011095,2]
[352291348,1739029843041,-3354.53,0.00011095,2]
[352291349,1739029843051,-500.0,0.00011095,2]
[352291350,1739029843062,-438.19380035,0.00011095,2]
[352291351,1739029843072,-500.0,0.00011095,2]
[352291352,1739029843083,-500.0,0.00011095,2]
[352291353,1739029843092,-500.0,0.00011095,2]
[352291354,1739029843101,-1936.75,0.00011095,2]
[352291355,1739029843111,-500.0,0.00011095,2]
[352291356,1739029843120,-37206.03,0.00011095,2]
[352291357,1739029843129,-500.0,0.00011095,2]
[352291358,1739029843138,-1320.97,0.00011095,2]
[352291359,1739029843147,-500.0,0.00011095,2]
[352291360,1739029843156,-889.93,0.00011095,2]
[352291361,1739029843165,-500.0,0.00011095,2]
[352291362,1739029843175,-12973.68,0.00011095,2]
[352291363,1739029843184,-500.0,0.00011095,2]
[352291364,1739029843193,-1770.68,0.00011095,2]
[352291365,1739029843204,-500.0,0.00011095,2]
[352291366,1739029843214,-500.0,0.00011095,2]
[352291367,1739029843223,-500.0,0.00011095,2]
[352291368,1739029843232,-500.0,0.00011095,2]
[352291369,1739029843241,-500.0,0.00011095,2]
[352291370,1739029843251,-1074.6,0.00011095,2]
[352291372,1739029843260,-500.0,0.00011095,2]
[352291373,1739029843270,-1342.28,0.00011095,2]
[352291374,1739029843279,-500.0,0.00011095,2]
[352291375,1739029843288,-1165.52,0.00011095,2]
[352291376,1739029843298,-500.0,0.00011095,2]
[352291377,1739029843308,-500.0,0.00011095,2]
[352291378,1739029843317,-618.82,0.00011095,2]
[352291380,1739029843327,-500.0,0.00011095,2]
[352291382,1739029843336,-500.0,0.00011095,2]
[352291384,1739029843346,-500.0,0.00011095,2]
[352291386,1739029843355,-500.0,0.00011095,2]
[352291389,1739029843366,-1060.33,0.00011095,2]
[352291392,1739029843376,-500.0,0.00011095,2]
[352291395,1739029843385,-1566.54,0.00011095,2]
[352291398,1739029843395,-500.0,0.00011095,2]
[352291401,1739029843404,-500.0,0.00011095,2]
[352291403,1739029843414,-500.0,0.00011095,2]
[352291404,1739029843423,-500.0,0.00011095,2]
[352291405,1739029843433,-664.84,0.00011095,2]
[352291406,1739029843443,-500.0,0.00011095,2]
[352291407,1739029843453,-500.0,0.00011095,2]
[352291408,1739029843462,-500.0,0.00011095,2]
[352291409,1739029843471,-500.0,0.00011095,2]
[352291410,1739029843481,-529.52977285,0.00011095,2]
[352291411,1739029843491,-500.0,0.00011095,2]
[352291412,1739029843500,-2952.23,0.00011095,2]
[352291413,1739029843509,-500.0,0.00011095,2]
[352291414,1739029843518,-500.0,0.00011095,2]
[352291415,1739029843528,-500.0,0.00011095,2]
[352291416,1739029843537,-3439.62,0.00011095,2]
[352291417,1739029843547,-517.54206974,0.00011095,2]
[352291418,1739029843562,-500.0,0.00011095,2]
[352291419,1739029843572,-7468.3,0.00011095,2]
[352291420,1739029843581,-606.87,0.00011095,2]
[352291421,1739029843591,-500.0,0.00011095,2]
[352291422,1739029843600,-809.01,0.00011095,2]
[352291423,1739029843609,-1339.39,0.00011095,2]
[352291424,1739029843618,-500.0,0.00011095,2]
[352291425,1739029843628,-500.0,0.00011095,2]
[352291426,1739029843639,-500.0,0.00011095,2]
[352291427,1739029843648,-500.0,0.00011095,2]
[352291428,1739029843657,-503.3188606,0.00011095,2]
[352291429,1739029843667,-359.76153062,0.00011095,2]
[352291430,1739029843676,-524.74,0.00011095,2]
[352291431,1739029843686,-1571.43,0.00011095,2]
[352291432,1739029843696,-500.0,0.00011095,2]
[352291433,1739029843705,-1210.14,0.00011095,2]
[352291434,1739029843714,-3144.47,0.00011095,2]
[352291435,1739029843723,-500.0,0.00011095,2]
[352291436,1739029843733,-500.0,0.00011095,2]
[352291437,1739029843742,-500.0,0.00011095,2]
[352291438,1739029843751,-500.0,0.00011095,2]
[352291439,1739029843760,-665.87,0.00011095,2]
[352291441,1739029843769,-500.0,0.00011095,2]
[352291443,1739029843778,-3969.61,0.00011095,2]
[352291445,1739029843788,-633.22,0.00011095,2]
[352291447,1739029843797,-500.0,0.00011095,2]
[352291449,1739029843806,-739.3,0.00011095,2]
[352291451,1739029843815,-500.0,0.00011095,2]
[352291453,1739029843824,-1405.35,0.00011095,2]
[352291455,1739029843833,-500.0,0.00011095,2]
[352291457,1739029843843,-500.0,0.00011095,2]
[352291459,1739029843852,-500.0,0.00011095,2]
[352291461,1739029843861,-500.0,0.00011095,2]
[352291463,1739029843870,-500.0,0.00011095,2]
[352291465,1739029843879,-639.43,0.00011095,2]
[352291467,1739029843889,-500.0,0.00011095,2]
[352291469,1739029843898,-951.4,0.00011095,2]
[352291471,1739029843907,-627.64163419,0.00011095,2]
[352291473,1739029843916,-500.0,0.00011095,2]
[352291475,1739029843926,-500.0,0.00011095,2]
[352291477,1739029843935,-500.0,0.00011095,2]
[352291479,1739029843945,-2784.51,0.00011095,2]
[352291481,1739029843956,-500.0,0.00011095,2]
[352291483,1739029843965,-354.7727591,0.00011123,2]
[352291485,1739029843974,-354.7727591,0.00011123,2]
[352291487,1739029843984,-708.4842718,0.00011123,2]
[352291489,1739029843996,-195.470037,0.00011166,2]
[352291491,1739029844005,-195.470037,0.00011166,2]
[352291493,1739029844014,-154.597,0.0001119,2]
[352291495,1739029844024,-151.0,0.000112,2]
[352291497,1739029844034,-151.0,0.000112,2]
[352291499,1739029844043,-195.470037,0.00011232,2]
[352291502,1739029844052,-195.470037,0.00011232,2]
[352291504,1739029844061,-500.0,0.00011232,2]
[352291506,1739029844072,-500.0,0.00011232,2]
[352291508,1739029844081,-373.169892,0.00011232,2]
[352291510,1739029844091,-373.169892,0.00011232,2]
[352291512,1739029844100,-373.169892,0.00011232,2]
[352291514,1739029844109,-373.169892,0.00011232,2]
[352291516,1739029844119,-500.0,0.00011232,2]
[352291518,1739029844128,-500.0,0.00011232,2]
[352291520,1739029844137,-500.0,0.00011232,2]
[352291522,1739029844147,-500.0,0.00011232,2]
[352291524,1739029844156,-500.0,0.00011232,2]
[352291526,1739029844165,-500.0,0.00011232,2]
[352291528,1739029844174,-500.0,0.00011232,2]
[352291530,1739029844183,-500.0,0.00011232,2]
[352291532,1739029844191,-500.0,0.00011232,2]
[352291534,1739029844202,-500.0,0.00011232,2]
[352291536,1739029844211,-749.9,0.00011232,2]
[352291538,1739029844221,-500.0,0.00011232,2]
[352291540,1739029844230,-896.41,0.00011232,2]
[352291542,1739029844241,-500.0,0.00011232,2]
[352291544,1739029844250,-1214.9,0.00011232,2]
[352291546,1739029844259,-500.0,0.00011232,2]
[352291548,1739029844268,-500.0,0.00011232,2]
[352291550,1739029844278,-500.0,0.00011232,2]
[352291552,1739029844288,-500.0,0.00011232,2]
[352291554,1739029844298,-1250.48,0.00011232,2]
[352291556,1739029844307,-1270.46,0.00011232,2]
[352291558,1739029844327,-201.1497123,0.00011232,2]
[352291560,1739029844336,-591.28,0.00011232,2]
[352291562,1739029844346,-798.88,0.00011232,2]
[352291564,1739029844355,-500.0,0.00011232,2]
[352291566,1739029844365,-500.0,0.00011232,2]
[352291568,1739029844374,-531.16,0.00011232,2]
[352291570,1739029844384,-500.0,0.00011232,2]
[352291572,1739029844394,-500.0,0.00011232,2]
[352291574,1739029844404,-500.0,0.00011232,2]
[352291576,1739029844413,-500.0,0.00011232,2]
[352291578,1739029844423,-500.0,0.00011232,2]
[352291580,1739029844432,-957.99,0.00011232,2]
[352291582,1739029844442,-500.0,0.00011232,2]
[352291584,1739029844451,-500.0,0.00011232,2]
[352291586,1739029844460,-500.0,0.00011232,2]
[352291588,1739029844469,-500.0,0.00011232,2]
[352291590,1739029844478,-1251.55,0.00011232,2]
[352291592,1739029844487,-500.0,0.00011232,2]
[352291594,1739029844497,-1001.21,0.00011232,2]
[352291596,1739029844506,-500.0,0.00011232,2]
[352291598,1739029844515,-500.0,0.00011232,2]
[352291600,1739029844525,-500.0,0.00011232,2]
[352291603,1739029844534,-500.0,0.00011232,2]
[352291605,1739029844544,-976.23,0.00011232,2]
[352291607,1739029844555,-500.0,0.00011232,2]
[352291609,1739029844565,-588.28,0.00011232,2]
[352291611,1739029844574,-521.91521285,0.00011232,2]
[352291613,1739029844583,-500.0,0.00011232,2]
[352291615,1739029844592,-500.0,0.00011232,2]
[352291617,1739029844602,-500.0,0.00011232,2]
[352291619,1739029844611,-500.0,0.00011232,2]
[352291621,1739029844620,-500.0,0.00011232,2]
[352291623,1739029844628,-500.0,0.00011232,2]
[352291624,1739029844638,-1041.29,0.00011232,2]
[352291626,1739029844647,-500.0,0.00011232,2]
[352291628,1739029844656,-644.7,0.00011232,2]
[352291630,1739029844666,-500.0,0.00011232,2]
[352291632,1739029844675,-511.79970277,0.00011232,2]
[352291634,1739029844685,-576.19,0.00011232,2]
[352291636,1739029844694,-500.0,0.00011232,2]
[352291638,1739029844704,-500.0,0.00011232,2]
[352291640,1739029844713,-500.0,0.00011232,2]
[352291642,1739029844722,-500.0,0.00011232,2]
[352291644,1739029844733,-500.0,0.00011232,2]
[352291654,1739029844876,-500.0,0.00011232,2]
[352291655,1739029844885,-503.44,0.00011232,2]
[352291656,1739029844895,-500.0,0.00011232,2]
[352291657,1739029844903,-500.0,0.00011232,2]
[352291658,1739029844912,-141.82476703,0.00011232,2]
[352291659,1739029844961,-358.17523297,0.00011232,2]
[352291660,1739029844970,-500.0,0.00011232,2]
[352291661,1739029844980,-500.0,0.00011232,2]
[352291662,1739029844992,-904.43,0.00011232,2]
[352291663,1739029845001,-564.85,0.00011232,2]
[352291664,1739029845011,-500.0,0.00011232,2]
[352291665,1739029845021,-784.19,0.00011232,2]
[352291666,1739029845031,-500.0,0.00011232,2]
[352291667,1739029845040,-500.0,0.00011232,2]
[352291668,1739029845050,-500.0,0.00011232,2]
[352291669,1739029845059,-500.0,0.00011232,2]
[352291670,1739029845069,-500.0,0.00011232,2]
[352291671,1739029845080,-500.0,0.00011232,2]
[352291672,1739029845089,-1214.06,0.00011232,2]
[352291673,1739029845098,-3517.66,0.00011232,2]
[352291674,1739029845107,-996.9,0.00011232,2]
[352291675,1739029845117,-4592.2,0.00011232,2]
[352291676,1739029845126,-500.0,0.00011232,2]
[352291677,1739029845135,-500.0,0.00011232,2]
[352291678,1739029845144,-500.0,0.00011232,2]
[352291679,1739029845154,-500.0,0.00011232,2]
[352291680,1739029845163,-1582.44,0.00011232,2]
[352291681,1739029845172,-500.0,0.00011232,2]
[352291682,1739029845182,-500.0,0.00011232,2]
[352291683,1739029845191,-500.0,0.00011232,2]
[352291684,1739029845200,-484.42603316,0.00011232,2]
[352291685,1739029845210,-500.0,0.00011232,2]
[352291686,1739029845220,-500.0,0.00011232,2]
[352291687,1739029845229,-500.0,0.00011232,2]
[352291688,1739029845239,-500.0,0.00011232,2]
[352291689,1739029845248,-1061.0,0.00011232,2]
[352291690,1739029845258,-500.0,0.00011232,2]
[352291691,1739029845267,-500.0,0.00011232,2]
[352291692,1739029845277,-1022.59,0.00011232,2]
[352291693,1739029845287,-500.0,0.00011232,2]
[352291694,1739029845296,-3843.95,0.00011232,2]
[352291695,1739029845305,-500.0,0.00011232,2]
[352291696,1739029845314,-3354.53,0.00011232,2]
[352291697,1739029845324,-500.0,0.00011232,2]
[352291698,1739029845333,-500.0,0.00011232,2]
[352291699,1739029845342,-1936.75,0.00011232,2]
[352291700,1739029845351,-500.0,0.00011232,2]
[352291701,1739029845361,-37206.03,0.00011232,2]
[352291702,1739029845371,-500.0,0.00011232,2]
[352291703,1739029845380,-1320.97,0.00011232,2]
[352291704,1739029845389,-500.0,0.00011232,2]
[352291705,1739029845398,-889.93,0.00011232,2]
[352291706,1739029845408,-500.0,0.00011232,2]
[352291707,1739029845417,-12973.68,0.00011232,2]
[352291708,1739029845427,-500.0,0.00011232,2]
[352291709,1739029845436,-1770.68,0.00011232,2]
[352291710,1739029845445,-500.0,0.00011232,2]
[352291711,1739029845455,-500.0,0.00011232,2]
[352291712,1739029845464,-500.0,0.00011232,2]
[352291713,1739029845475,-500.0,0.00011232,2]
[352291714,1739029845484,-500.0,0.00011232,2]
[352291715,1739029845494,-1074.6,0.00011232,2]
[352291716,1739029845503,-500.0,0.00011232,2]
[352291717,1739029845513,-1342.28,0.00011232,2]
[352291718,1739029845522,-500.0,0.00011232,2]
[352291719,1739029845531,-1165.52,0.00011232,2]
[352291720,1739029845540,-500.0,0.00011232,2]
[352291721,1739029845550,-500.0,0.00011232,2]
[352291722,1739029845559,-618.82,0.00011232,2]
[352291723,1739029845569,-500.0,0.00011232,2]
[352291724,1739029845578,-500.0,0.00011232,2]
[352291725,1739029845588,-500.0,0.00011232,2]
[352291726,1739029845597,-500.0,0.00011232,2]
[352291727,1739029845607,-1060.33,0.00011232,2]
[352291728,1739029845617,-500.0,0.00011232,2]
[352291729,1739029845626,-1566.54,0.00011232,2]
[352291730,1739029845634,-500.0,0.00011232,2]
[352291731,1739029845644,-500.0,0.00011232,2]
[352291732,1739029845652,-500.0,0.00011232,2]
[352291733,1739029845662,-500.0,0.00011232,2]
[352291734,1739029845671,-664.84,0.00011232,2]
[352291735,1739029845680,-500.0,0.00011232,2]
[352291736,1739029845689,-500.0,0.00011232,2]
[352291737,1739029845699,-500.0,0.00011232,2]
[352291738,1739029845708,-500.0,0.00011232,2]
[352291739,1739029845717,-500.0,0.00011232,2]
[352291740,1739029845726,-2952.23,0.00011232,2]
[352291741,1739029845735,-500.0,0.00011232,2]
[352291742,1739029845744,-519.94,0.00011232,2]
[352291743,1739029845753,-500.0,0.00011232,2]
[352291744,1739029845762,-3439.62,0.00011232,2]
[352291745,1739029845772,-500.0,0.00011232,2]
[352291746,1739029845781,-7468.3,0.00011232,2]
[352291747,1739029845790,-606.87,0.00011232,2]
[352291748,1739029845799,-500.0,0.00011232,2]
[352291749,1739029845808,-809.01,0.00011232,2]
[352291750,1739029845817,-1339.39,0.00011232,2]
[352291751,1739029845827,-500.0,0.00011232,2]
[352291752,1739029845836,-392.32299539,0.00011232,2]
[352291753,1739029845846,-496.7,0.00011232,2]
[352291754,1739029845855,-500.0,0.00011232,2]
[352291755,1739029845865,-524.74,0.00011232,2]
[352291756,1739029845874,-1571.43,0.00011232,2]
[352291757,1739029845883,-500.0,0.00011232,2]
[352291758,1739029845892,-3144.47,0.00011232,2]
[352291759,1739029845903,-1210.14,0.00011232,2]